bitfinex/quotes_SOLUSD_20250422
["timestamp","ask_amount","ask_price","bid_price","bid_amount"]
[1745328767168,0.063,142.05,142.03,114.10031246]
[1745328767439,1.5288481,142.09,142.07,44.64964886]
[1745328767630,1.5288481,142.09,142.07,99.668]
[1745328767805,1.5288481,142.09,142.07,144.94298066]
[1745328768003,1.5288481,142.09,142.07,170.94298066]
[1745328768234,1.5288481,142.09,142.07,386.32298066]
[1745328768736,1.5288481,142.09,142.07,399.39686435]
[1745328769041,1.5288481,142.09,142.07,392.35808066]
[1745328769223,1.5288481,142.09,142.07,393.6733318]
[1745328769410,1.5288481,142.09,142.07,367.048]
[1745328769608,1.5288481,142.09,142.07,393.6733318]
[1745328770130,1.5288481,142.09,142.07,412.32298066]
[1745328770833,1.5288481,142.09,142.07,393.6733318]
[1745328771247,1.5288481,142.09,142.07,412.32298066]
[1745328771547,1.5288481,142.09,142.07,393.6733318]
[1745328772249,1.5288481,142.09,142.07,367.6733318]
[1745328772946,1.5288481,142.09,142.07,340.668]
[1745328772947,8.56667109,142.09,142.07,340.668]
[1745328773155,8.56667109,142.09,142.07,259.38]
[1745328773156,26.6883318,142.08,142.07,259.38]
[1745328773320,26.6883318,142.08,142.07,18.0]
[1745328773836,0.063,142.08,142.07,18.0]
[1745328774444,0.063,142.08,142.07,44.6253318]
[1745328774624,0.063,142.08,142.07,125.9133318]
[1745328775541,0.063,142.08,142.07,144.56298066]
[1745328776636,0.063,142.08,142.07,151.60176435]
[1745328776827,1.5288481,142.09,142.08,125.87464886]
[1745328777022,1.5288481,142.09,142.08,152.49998066]
[1745328777322,1.5288481,142.09,142.08,179.12531246]
[1745328777534,0.063,142.12,142.11,44.64964886]
[1745328777824,0.063,142.12,142.11,152.49998066]
[1745328778132,0.063,142.19,142.12,18.64964886]
[1745328778449,0.063,142.19,142.17,18.64964886]
[1745328778631,0.063,142.19,142.18,26.6253318]
[1745328778831,0.063,142.19,142.18,45.27498066]
[1745328779228,0.063,142.19,142.18,71.27498066]
[1745328779554,0.063,142.19,142.18,45.27498066]
[1745328780425,0.063,142.19,142.18,52.30831868]
[1745328780955,0.063,142.19,142.18,44.64964886]
[1745328781245,0.063,142.19,142.18,71.27498066]
[1745328781941,0.063,142.19,142.18,78.30831868]
[1745328782133,0.063,142.19,142.18,71.27498066]
[1745328782523,0.063,142.19,142.18,78.30831868]
[1745328782723,0.063,142.19,142.18,71.27498066]
[1745328783664,0.063,142.19,142.18,78.30831868]
[1745328783825,0.063,142.22,142.19,18.64964886]
[1745328784025,0.063,142.22,142.21,26.0]
[1745328784241,0.063,142.22,142.21,52.6253318]
[1745328784432,0.063,142.22,142.21,133.8503318]
[1745328784860,0.063,142.22,142.21,152.49998066]
[1745328785155,0.063,142.22,142.21,159.53183495]
[1745328785360,0.063,142.22,142.21,393.65998066]
[1745328785849,0.063,142.23,142.22,99.81164886]
[1745328786028,0.063,142.23,142.22,126.43698066]
[1745328786223,0.063,142.23,142.22,152.43698066]
[1745328787024,0.063,142.23,142.22,133.46834052]
[1745328787342,0.063,142.23,142.22,126.43698066]
[1745328788050,0.063,142.23,142.22,160.09367232]
[1745328788463,0.063,142.23,142.22,126.43698066]
[1745328788925,0.063,142.23,142.22,99.81164886]
[1745328789126,0.063,142.23,142.22,126.43698066]
[1745328789324,0.063,142.23,142.22,153.06231246]
[1745328789622,0.063,142.23,142.22,133.46834052]
[1745328790129,0.063,142.23,142.22,81.162]
[1745328790329,0.063,142.23,142.22,152.43698066]
[1745328792550,0.063,142.23,142.22,133.7873318]
[1745328792954,0.063,142.23,142.22,152.43698066]
[1745328793452,0.063,142.23,142.22,133.7873318]
[1745328793821,0.063,142.23,142.22,107.162]
[1745328794025,0.063,142.23,142.22,133.7873318]
[1745328794860,0.063,142.23,142.22,152.43698066]
[1745328796023,0.063,142.23,142.22,26.0]
[1745328796226,0.063,142.23,142.22,43.98]
[1745328796444,0.063,142.23,142.22,70.6053318]
[1745328796845,0.063,142.23,142.22,170.41698066]
[1745328797046,0.063,142.23,142.22,151.44834052]
[1745328797769,0.063,142.23,142.22,144.41698066]
[1745328798058,0.063,142.23,142.22,143.79164886]
[1745328798264,0.063,142.23,142.22,170.41698066]
[1745328799049,26.3143318,142.29,142.22,170.41698066]
[1745328799259,26.6253318,142.28,142.23,26.6253318]
[1745328799441,26.6253318,142.29,142.24,26.6253318]
[1745328800041,26.6253318,142.28,142.23,26.6253318]
[1745328800241,26.6253318,142.28,142.22,125.142]
[1745328800444,26.6253318,142.28,142.23,26.6253318]
[1745328800937,8.55619771,142.3,142.26,26.6253318]
[1745328801360,26.6253318,142.29,142.23,18.64964886]
[1745328801543,26.6253318,142.29,142.24,26.6253318]
[1745328801744,8.55619771,142.3,142.24,26.6253318]
[1745328801959,26.6253318,142.29,142.24,26.6253318]
[1745328802755,35.18152951,142.3,142.25,26.6253318]
[1745328803865,7.02796605,142.29,142.25,26.6253318]
[1745328804160,7.02796605,142.29,142.26,17.6]
[1745328804545,33.65329785,142.29,142.26,17.6]
[1745328804946,7.02796605,142.29,142.26,17.6]
[1745328805163,35.18163179,142.3,142.26,44.2253318]
[1745328805538,35.18163179,142.3,142.26,17.6]
[1745328805739,26.6253318,142.29,142.26,17.6]
[1745328806042,26.6253318,142.27,142.21,241.16]
[1745328806248,28.2377318,142.22,142.21,258.76]
[1745328806455,28.2377318,142.22,142.21,15.9334]
[1745328807269,28.2377318,142.22,142.16,17.6]
[1745328807473,26.6253318,142.18,142.16,17.6]
[1745328807969,33.65867252,142.18,142.16,17.6]
[1745328808163,26.6253318,142.17,142.16,17.6]
[1745328809469,33.65867252,142.18,142.16,17.6]
[1745328809648,26.6253318,142.18,142.16,17.6]
[1745328810051,6.528,142.19,142.16,17.6]
[1745328810263,26.6253318,142.18,142.16,17.6]
[1745328810948,26.6253318,142.2,142.16,17.6]
[1745328811270,26.6253318,142.18,142.16,17.6]
[1745328811451,26.6253318,142.17,142.16,17.6]
[1745328811971,26.6253318,142.17,142.12,241.0]
[1745328811972,1.6124,142.16,142.12,241.0]
[1745328812148,26.6253318,142.13,142.12,241.0]
[1745328812351,26.6253318,142.13,142.08,17.6]
[1745328812550,26.6253318,142.11,142.08,17.6]
[1745328813269,26.6253318,142.09,142.08,17.6]
[1745328813980,33.66312474,142.09,142.08,17.6]
[1745328814285,35.27552474,142.09,142.08,17.6]
[1745328814575,35.27552474,142.09,142.07,0.063]
[1745328814762,1.6124,142.09,142.07,0.063]
[1745328814956,33.1533318,142.1,142.07,0.063]
[1745328815388,6.528,142.1,142.07,0.063]
[1745328815557,33.1533318,142.1,142.07,0.063]
[1745328815750,40.19067361,142.1,142.07,0.063]
[1745328816185,33.1533318,142.1,142.07,0.063]
[1745328816478,26.6253318,142.08,142.07,0.063]
[1745328817879,33.66362008,142.08,142.07,0.063]
[1745328818385,61.27602008,142.08,142.07,0.063]
[1745328820677,1.6124,142.08,142.07,0.063]
[1745328820864,98.13638367,142.12,142.07,0.063]
[1745328820865,33.66248245,142.11,142.07,0.063]
[1745328821171,8.64888044,142.12,142.07,26.6883318]
[1745328821377,1.6124,142.16,142.09,26.6253318]
[1745328821561,6.528,142.17,142.12,26.6253318]
[1745328821761,1.6124,142.2,142.11,26.6253318]
[1745328821762,26.6253318,142.16,142.11,26.6253318]
[1745328822082,26.6253318,142.15,142.1,44.2453318]
[1745328822281,26.6253318,142.16,142.1,17.62]
[1745328822497,26.6253318,142.16,142.11,26.6253318]
[1745328822682,26.6253318,142.15,142.1,17.62]
[1745328822860,26.6253318,142.15,142.11,26.6253318]
[1745328823168,26.6253318,142.17,142.12,26.6253318]
[1745328823570,26.6253318,142.18,142.13,26.6253318]
[1745328823784,33.65890574,142.18,142.13,26.6253318]
[1745328824082,26.6253318,142.17,142.12,26.6253318]
[1745328824384,7.03357394,142.18,142.12,26.6253318]
[1745328824574,1.6124,142.2,142.15,26.6253318]
[1745328824775,6.528,142.21,142.16,44.2453318]
[1745328824961,33.1533318,142.21,142.16,44.2453318]
[1745328825166,7.03086549,142.23,142.17,26.6253318]
[1745328825375,33.65619729,142.23,142.18,26.6253318]
[1745328825573,26.6253318,142.22,142.17,26.6253318]
[1745328826082,33.65674786,142.22,142.16,17.62]
[1745328826286,6.528,142.25,142.19,26.6253318]
[1745328826469,33.65471462,142.26,142.21,26.6253318]
[1745328826785,26.6253318,142.24,142.2,26.6253318]
[1745328827687,26.6253318,142.26,142.21,26.6253318]
[1745328827872,26.6253318,142.26,142.22,17.62]
[1745328828073,26.6253318,142.25,142.22,17.62]
[1745328828281,26.6253318,142.24,142.22,17.62]
[1745328828592,26.6253318,142.25,142.22,17.62]
[1745328828886,7.05902934,142.27,142.22,17.62]
[1745328829091,26.6253318,142.26,142.22,17.62]
[1745328829282,26.6253318,142.25,142.22,17.62]
[1745328829465,33.6553706,142.25,142.22,17.62]
[1745328829784,26.6253318,142.23,142.22,17.62]
[1745328830478,26.0,142.22,142.18,17.62]
[1745328830791,26.6253318,142.19,142.18,17.62]
[1745328830969,26.6253318,142.21,142.18,17.62]
[1745328831292,26.6253318,142.22,142.18,17.62]
[1745328831674,26.6253318,142.2,142.18,17.62]
[1745328831878,26.6253318,142.22,142.18,17.62]
[1745328832088,52.6253318,142.23,142.18,44.2453318]
[1745328832374,26.6253318,142.21,142.18,17.62]
[1745328832768,7.03054412,142.24,142.18,17.62]
[1745328833003,7.02938282,142.26,142.19,26.6253318]
[1745328833201,26.6253318,142.26,142.21,26.6253318]
[1745328833369,59.68436556,142.27,142.22,26.6253318]
[1745328833570,0.03,142.27,142.24,26.6253318]
[1745328833787,7.05894348,142.27,142.24,17.4]
[1745328833997,26.6553318,142.27,142.24,17.4]
[1745328834192,0.03,142.27,142.24,17.4]
[1745328834385,26.6553318,142.27,142.24,17.4]
[1745328834594,26.6253318,142.25,142.24,17.4]
[1745328834983,80.04071246,142.25,142.13,328.6591]
[1745328835181,26.6253318,142.19,142.14,17.4]
[1745328835381,26.6253318,142.18,142.14,17.4]
[1745328835707,26.6253318,142.17,142.14,17.4]
[1745328835911,7.03155619,142.22,142.16,26.6253318]
[1745328836070,7.03090113,142.23,142.18,26.6253318]
[1745328836274,26.6253318,142.22,142.17,26.6253318]
[1745328836804,7.03090113,142.23,142.17,26.6253318]
[1745328836980,26.6253318,142.22,142.17,26.6253318]
[1745328837397,26.6253318,142.22,142.14,62.04964886]
[1745328837586,26.6253318,142.21,142.14,62.04964886]
[1745328837793,33.65712356,142.22,142.17,26.6253318]
[1745328838102,33.65675663,142.22,142.17,26.6253318]
[1745328838309,26.6253318,142.21,142.17,26.6253318]
[1745328838469,26.6253318,142.21,142.16,26.6253318]
[1745328838673,7.03142483,142.22,142.17,26.6253318]
[1745328838871,26.6253318,142.21,142.17,26.6253318]
[1745328839085,33.65675663,142.22,142.17,26.6253318]
[1745328839300,26.6253318,142.21,142.14,43.463]
[1745328839503,26.6253318,142.21,142.16,26.6253318]
[1745328839695,33.65761787,142.21,142.16,26.6253318]
[1745328840077,26.6253318,142.2,142.15,26.6253318]
[1745328840485,26.6253318,142.21,142.17,26.6253318]
[1745328840706,17.60290233,142.27,142.2,26.6253318]
[1745328841006,7.05907849,142.27,142.23,26.6253318]
[1745328841215,26.6253318,142.26,142.21,17.4]
[1745328841579,26.6253318,142.25,142.21,17.4]
[1745328841913,33.65550601,142.25,142.21,17.4]
[1745328842086,26.6253318,142.24,142.21,17.4]
[1745328842281,0.03,142.27,142.22,26.6253318]
[1745328842486,26.6553318,142.27,142.23,26.6253318]
[1745328842709,0.03,142.27,142.23,26.6253318]
[1745328843004,7.05891308,142.27,142.23,26.6253318]
[1745328843207,33.68424488,142.27,142.23,26.6253318]
[1745328843387,0.03,142.27,142.24,26.6253318]
[1745328844276,0.03,142.27,142.21,98.562]
[1745328844479,26.6253318,142.25,142.21,17.4]
[1745328844680,26.6553318,142.27,142.22,26.6253318]
[1745328844928,26.6553318,142.27,142.21,17.4]
[1745328845082,26.03,142.27,142.21,44.0253318]
[1745328845283,52.6553318,142.27,142.23,26.6253318]
[1745328845688,0.03,142.27,142.24,26.6253318]
[1745328846102,0.03,142.27,142.26,26.6253318]
[1745328846497,0.03,142.27,142.23,33.8953]
[1745328846797,0.03,142.27,142.26,26.6253318]
[1745328846984,0.03,142.27,142.23,115.0573]
[1745328847185,0.03,142.27,142.26,26.6253318]
[1745328847907,0.03,142.27,142.23,113.4517]
[1745328848217,0.03,142.27,142.23,87.4517]
[1745328848504,0.03,142.27,142.24,26.6253318]
[1745328849399,0.03,142.27,142.25,26.6253318]
[1745328849578,0.03,142.27,142.26,26.6253318]
[1745328850009,0.03,142.27,142.25,26.6253318]
[1745328850280,0.03,142.27,142.26,26.6253318]
[1745328850495,0.03,142.27,142.24,241.06]
[1745328850688,0.03,142.27,142.26,26.6253318]
[1745328851100,0.03,142.27,142.24,241.06]
[1745328851289,0.03,142.27,142.25,26.6253318]
[1745328851896,0.03,142.27,142.26,44.0253318]
[1745328852711,0.03,142.27,142.26,17.4]
[1745328853084,0.03,142.27,142.26,44.0253318]
[1745328855509,0.03,142.27,142.26,17.4]
[1745328855691,0.03,142.27,142.26,44.0253318]
[1745328856416,0.03,142.27,142.26,17.4]
[1745328856798,26.6553318,142.27,142.26,17.4]
[1745328857188,0.03,142.27,142.26,17.4]
[1745328858100,0.03,142.27,142.26,44.0253318]
[1745328860014,0.03,142.27,142.26,17.4]
[1745328860517,0.03,142.27,142.26,44.0253318]
[1745328861328,0.03,142.27,142.26,50.5429318]
[1745328861909,0.03,142.27,142.25,26.6253318]
[1745328862113,0.03,142.27,142.26,17.38]
[1745328862432,26.6553318,142.27,142.26,17.38]
[1745328862604,0.03,142.27,142.26,17.38]
[1745328863010,0.03,142.27,142.26,62.65498066]
[1745328863210,0.03,142.27,142.26,150.84636348]
[1745328863509,0.03,142.27,142.26,143.81698066]
[1745328863741,0.03,142.27,142.26,125.1673318]
[1745328864319,0.03,142.27,142.26,132.19671462]
[1745328864541,0.03,142.27,142.26,150.84636348]
[1745328865027,0.03,142.27,142.26,98.542]
[1745328865233,0.03,142.27,142.26,125.1673318]
[1745328867429,0.03,142.27,142.26,98.542]
[1745328867819,0.03,142.27,142.26,125.1673318]
[1745328869943,26.6553318,142.27,142.25,17.38]
[1745328870323,0.03,142.27,142.25,17.38]
[1745328870921,0.03,142.27,142.26,26.6253318]
[1745328871230,0.03,142.27,142.25,44.0053318]
[1745328871837,0.03,142.27,142.26,26.6253318]
[1745328872265,0.03,142.27,142.26,107.7873318]
[1745328872418,0.03,142.27,142.26,126.43698066]
[1745328872819,0.03,142.27,142.26,128.00758066]
[1745328873047,0.03,142.31,142.29,26.0]
[1745328873350,0.03,142.31,142.3,45.27498066]
[1745328874623,0.03,142.31,142.29,107.162]
[1745328874951,0.03,142.31,142.3,26.6253318]
[1745328875242,0.03,142.31,142.3,33.65273868]
[1745328875451,0.03,142.31,142.3,59.65273868]
[1745328875941,0.03,142.31,142.3,107.7873318]
[1745328876145,0.03,142.31,142.27,81.162]
[1745328876447,0.03,142.31,142.28,26.6253318]
[1745328876650,0.03,142.31,142.27,81.162]
[1745328876826,0.03,142.31,142.28,26.6253318]
[1745328877734,0.03,142.31,142.27,81.162]
[1745328878135,0.03,142.31,142.28,26.6253318]
[1745328878730,0.03,142.31,142.29,26.6253318]
[1745328879127,0.03,142.31,142.27,81.162]
[1745328879639,0.03,142.31,142.28,26.6253318]
[1745328880039,0.03,142.31,142.27,81.162]
[1745328880040,0.03,142.31,142.29,26.6253318]
[1745328880748,0.03,142.31,142.3,33.40225574]
[1745328880963,0.03,142.31,142.3,86.65291934]
[1745328881148,0.03,142.31,142.3,167.81491934]
[1745328881347,0.063,142.32,142.31,18.64964886]
[1745328881533,0.063,142.32,142.31,89.96031246]
[1745328882279,0.063,142.34,142.32,99.74864886]
[1745328882443,0.063,142.34,142.33,45.27498066]
[1745328882935,0.063,142.34,142.33,71.27498066]
[1745328883549,0.063,142.34,142.33,78.30090632]
[1745328884268,0.063,142.34,142.33,71.27498066]
[1745328884955,0.063,142.34,142.33,78.30090632]
[1745328886448,0.063,142.34,142.33,71.27498066]
[1745328886940,0.063,142.34,142.33,159.39990632]
[1745328887769,0.063,142.34,142.33,133.39990632]
[1745328888642,0.063,142.34,142.33,107.7243318]
[1745328888855,0.063,142.34,142.33,152.37398066]
[1745328889066,0.063,142.34,142.33,159.39990632]
[1745328889259,0.063,142.34,142.33,125.74864886]
[1745328889466,0.063,142.34,142.33,107.7243318]
[1745328893778,0.063,142.34,142.33,81.099]
[1745328893985,0.063,142.34,142.31,18.06]
[1745328894451,0.063,142.34,142.31,44.6853318]
[1745328894810,0.063,142.34,142.33,26.6253318]
[1745328895558,0.063,142.34,142.33,16.5615576]
[1745328898793,0.063,142.34,142.33,97.6605576]
[1745328900764,0.063,142.34,142.33,165.52613212]
[1745328901081,0.063,142.34,142.33,123.6605576]
[1745328901284,0.063,142.34,142.33,107.099]
[1745328901594,0.063,142.34,142.33,123.6605576]
[1745328901789,0.063,142.34,142.33,81.099]
[1745328902176,0.063,142.34,142.31,275.4415576]
[1745328902488,0.063,142.34,142.32,16.5615576]
[1745328903096,0.063,142.34,142.31,258.88]
[1745328903593,16.5615576,142.32,142.31,258.86]
[1745328904014,50.6425576,142.32,142.31,18.04]
[1745328904299,26.0,142.29,142.27,0.063]
[1745328904591,6.5747,142.26,142.22,240.82]
[1745328904771,16.5615576,142.23,142.21,18.04]
[1745328904977,26.0,142.19,142.18,0.063]
[1745328905191,16.5615576,142.19,142.18,0.063]
[1745328905490,71.22751603,142.19,142.18,0.063]
[1745328905693,18.64964886,142.17,142.14,0.063]
[1745328905903,18.64964886,142.15,142.14,0.063]
[1745328906204,6.5747,142.16,142.11,18.123]
[1745328906381,26.57786717,142.12,142.11,18.123]
[1745328906577,26.57786717,142.12,142.07,0.063]
[1745328906774,26.57786717,142.08,142.07,0.063]
[1745328907169,7.03680247,142.11,142.07,0.063]
[1745328907374,7.03482237,142.15,142.09,26.57786717]
[1745328907573,7.03482237,142.15,142.07,0.063]
[1745328907574,26.57786717,142.13,142.1,18.06]
[1745328907775,7.03482237,142.15,142.1,44.63786717]
[1745328907986,26.57786717,142.16,142.11,26.57786717]
[1745328908482,33.61182651,142.17,142.12,26.57786717]
[1745328908791,26.0,142.18,142.13,26.57786717]
[1745328908792,26.57786717,142.18,142.13,26.57786717]
[1745328908994,26.57786717,142.18,142.1,63.28751603]
[1745328909194,26.57786717,142.17,142.13,26.57786717]
[1745328909499,7.03237828,142.2,142.15,26.57786717]
[1745328909680,7.03199142,142.21,142.16,44.63786717]
[1745328909878,26.57786717,142.2,142.16,44.63786717]
[1745328910078,26.57786717,142.2,142.16,18.06]
[1745328910608,26.57786717,142.2,142.16,44.63786717]
[1745328910774,7.03116166,142.23,142.16,44.63786717]
[1745328910981,26.57786717,142.2,142.16,44.63786717]
[1745328911285,7.03116166,142.23,142.17,26.57786717]
[1745328911286,26.57786717,142.22,142.17,26.57786717]
[1745328911491,26.57786717,142.22,142.18,26.57786717]
[1745328911699,26.57786717,142.22,142.17,26.57786717]
[1745328911888,26.57786717,142.21,142.17,26.57786717]
[1745328912202,24.6083254,142.23,142.16,99.159]
[1745328912507,26.57786717,142.2,142.16,99.159]
[1745328912816,25.65538373,142.26,142.19,26.57786717]
[1745328912817,7.02977809,142.26,142.19,26.57786717]
[1745328913094,26.57786717,142.25,142.19,81.099]
[1745328913306,7.02888854,142.28,142.19,81.099]
[1745328913307,7.02888854,142.28,142.21,26.57786717]
[1745328913491,26.57786717,142.24,142.22,18.12]
[1745328913701,26.57786717,142.23,142.22,18.12]
[1745328913900,50.59987532,142.28,142.22,18.12]
[1745328914108,26.57786717,142.23,142.22,18.12]
[1745328914921,33.60873266,142.23,142.22,18.12]
[1745328915621,26.0,142.25,142.22,18.12]
[1745328915785,26.57786717,142.24,142.22,18.12]
[1745328916588,26.57786717,142.26,142.22,18.12]
[1745328916999,33.60731067,142.26,142.22,18.12]
[1745328917508,26.57786717,142.24,142.22,18.12]
[1745328917705,26.57786717,142.23,142.22,18.12]
[1745328918698,7.02790076,142.29,142.22,44.69786717]
[1745328918896,26.57786717,142.28,142.23,26.57786717]
[1745328919323,7.02740688,142.3,142.24,26.57786717]
[1745328919324,26.57786717,142.29,142.24,26.57786717]
[1745328919494,26.57786717,142.25,142.22,18.12]
[1745328919825,26.57786717,142.23,142.22,18.12]
[1745328920020,26.57786717,142.24,142.22,18.12]
[1745328920194,26.57786717,142.25,142.22,18.12]
[1745328920514,26.57786717,142.24,142.22,18.12]
[1745328921096,26.57786717,142.25,142.22,18.12]
[1745328921303,26.57786717,142.24,142.22,18.12]
[1745328921727,26.0,142.28,142.22,44.69786717]
[1745328921928,26.57786717,142.27,142.22,44.69786717]
[1745328922422,26.57786717,142.26,142.22,44.69786717]
[1745328922598,26.57786717,142.25,142.22,18.12]
[1745328922798,26.0,142.27,142.22,18.12]
[1745328923020,26.57786717,142.23,142.22,18.12]
[1745328925418,33.60873266,142.23,142.22,18.12]
[1745328925620,18.64964886,142.22,142.18,18.12]
[1745328925920,104.09476404,142.23,142.18,18.12]
[1745328926219,26.57786717,142.19,142.18,18.12]
[1745328926729,26.57786717,142.19,142.16,0.03]
[1745328927031,24.60802923,142.23,142.16,0.03]
[1745328927231,7.03086549,142.23,142.17,44.12]
[1745328927432,7.02987697,142.25,142.19,26.57786717]
[1745328927629,26.57786717,142.24,142.19,26.57786717]
[1745328927798,26.57786717,142.23,142.18,26.57786717]
[1745328928797,26.57786717,142.23,142.17,44.12]
[1745328928798,26.57786717,142.22,142.17,44.12]
[1745328929004,26.57786717,142.22,142.17,70.69786717]
[1745328929203,26.57786717,142.22,142.17,44.12]
[1745328929508,7.03185429,142.21,142.17,70.69786717]
[1745328929706,26.57786717,142.23,142.18,26.57786717]
[1745328929908,7.0310376,142.23,142.18,26.57786717]
[1745328930215,85.73113481,142.3,142.22,26.57786717]
[1745328930417,26.57786717,142.27,142.23,18.12]
[1745328930815,33.60576793,142.29,142.24,26.57786717]
[1745328931016,26.57786717,142.28,142.23,44.69786717]
[1745328931213,26.57786717,142.26,142.23,18.12]
[1745328931413,33.60823837,142.24,142.23,18.12]
[1745328931703,60.18610554,142.24,142.23,18.12]
[1745328932106,77.76203354,142.24,142.18,18.12]
[1745328932300,26.57786717,142.19,142.18,18.12]
[1745328933111,26.0,142.2,142.13,18.12]
[1745328933529,26.57786717,142.17,142.13,18.12]
[1745328934124,7.03284337,142.19,142.13,18.12]
[1745328934314,26.57786717,142.17,142.13,18.12]
[1745328934724,26.57786717,142.17,142.13,44.69786717]
[1745328935553,33.6116999,142.17,142.13,44.69786717]
[1745328935709,26.57786717,142.17,142.13,44.69786717]
[1745328935912,33.6116999,142.17,142.13,18.12]
[1745328936239,26.57786717,142.17,142.13,44.69786717]
[1745328936608,33.6116999,142.17,142.13,18.12]
[1745328937045,7.03284337,142.19,142.13,44.69786717]
[1745328937350,7.03135986,142.22,142.15,26.57786717]
[1745328937645,24.60975952,142.22,142.14,26.57786717]
[1745328937840,26.57786717,142.18,142.14,26.57786717]
[1745328938235,26.57786717,142.18,142.13,125.79686717]
[1745328938420,26.57786717,142.19,142.14,26.57786717]
[1745328938830,26.57786717,142.18,142.14,26.57786717]
[1745328939214,26.57786717,142.17,142.13,99.219]
[1745328939862,33.6116999,142.17,142.13,99.219]
[1745328940213,33.6116999,142.17,142.13,18.12]
[1745328940413,60.18956707,142.17,142.13,18.12]
[1745328940707,7.03383273,142.17,142.13,18.12]
[1745328940913,7.03284337,142.19,142.13,44.69786717]
[1745328941129,26.57786717,142.17,142.13,18.12]
[1745328941840,33.6116999,142.17,142.13,44.69786717]
[1745328942140,26.57786717,142.17,142.13,18.12]
[1745328942314,33.6116999,142.17,142.13,18.12]
[1745328943446,78.83921593,142.17,142.13,18.12]
[1745328943844,33.6116999,142.17,142.13,18.12]
[1745328944052,78.83921593,142.17,142.13,18.12]
[1745328945028,60.18956707,142.17,142.13,18.12]
[1745328945229,33.6116999,142.17,142.13,18.12]
[1745328945628,60.18956707,142.17,142.13,18.12]
[1745328946554,78.83921593,142.17,142.13,18.12]
[1745328946943,33.6116999,142.17,142.13,18.12]
[1745328947323,60.18956707,142.17,142.13,18.12]
[1745328947938,33.6116999,142.17,142.13,18.12]
[1745328948624,60.18956707,142.17,142.13,18.12]
[1745328950648,33.6116999,142.17,142.13,18.12]
[1745328952456,19.11981688,142.23,142.16,26.60786717]
[1745328952630,26.57786717,142.21,142.16,0.03]
[1745328952825,7.03135986,142.22,142.16,26.60786717]
[1745328953059,26.57786717,142.2,142.16,0.03]
[1745328953434,24.60975952,142.22,142.16,0.03]
[1745328953634,26.57786717,142.21,142.16,0.03]
[1745328953853,33.60922703,142.22,142.17,26.57786717]
[1745328954041,17.57592999,142.24,142.18,26.57786717]
[1745328954042,7.03079741,142.24,142.18,26.57786717]
[1745328954243,33.6089329,142.23,142.19,17.64]
[1745328954449,7.03043022,142.24,142.19,44.21786717]
[1745328954651,7.02938282,142.26,142.19,44.21786717]
[1745328954944,7.02938282,142.26,142.2,26.57786717]
[1745328954945,26.57786717,142.25,142.2,26.57786717]
[1745328955156,26.57786717,142.25,142.21,26.57786717]
[1745328955829,26.57786717,142.26,142.21,26.57786717]
[1745328956030,26.57786717,142.26,142.22,26.57786717]
[1745328956435,7.09161589,142.28,142.22,26.57786717]
[1745328956935,26.57786717,142.27,142.22,26.57786717]
[1745328957134,7.09161589,142.28,142.22,26.57786717]
[1745328957332,0.063,142.28,142.25,26.57786717]
[1745328957650,0.063,142.28,142.26,17.64]
[1745328958035,26.64086717,142.28,142.26,17.64]
[1745328958236,26.57786717,142.27,142.26,17.64]
[1745328958452,33.6067559,142.27,142.26,17.64]
[1745328958636,26.57786717,142.27,142.26,17.64]
[1745328958959,7.09157617,142.28,142.26,17.64]
[1745328958960,26.64086717,142.28,142.26,17.64]
[1745328959456,33.66936024,142.28,142.26,17.64]
[1745328959956,26.57786717,142.27,142.22,26.0]
[1745328960132,26.57786717,142.25,142.23,17.64]
[1745328960336,7.09149307,142.28,142.23,17.64]
[1745328960540,33.60700764,142.27,142.23,17.64]
[1745328960745,26.57786717,142.26,142.23,17.64]